Cogmind - Beta 14 @@@ ROGUE MODE // 2024.12.01 @ 17:10:35 Player: Shimmyarah Result: Destroyed by P-80 Master with Gamma Rifle Performance ------------- Evolutions (9) 4500 Regions Visited (11) 2200 Robots Destroyed (30) 150 Value Destroyed (792) 792 Prototype IDs (26) 520 Alien Tech Used (0) 0 Bonus (800) 800 TOTAL SCORE: 8962 Bonus ------- Entered DSFs 500 Registered with UFD 300 Cogmind --------- Core Integrity 0/1600 Matter 238/300 Energy 98/100 System Corruption 20% Temperature Cool (0) Movement Core (50) Location -1/Access Parts ------- > --- POWER (2) -------- (None) > --- PROPULSION (13) -- (None) > --- UTILITY (7) ------ Advanced Terrain Scan Processor > --- WEAPON (3) ------- (None) > --- INVENTORY (5) ---- Micro Antimatter Reactor Light Quantum Reactor Nova Cannon Gauss Cannon Hardcell Cannon Peak State ------------ > --- POWER ------------ Ion Engine Improved Ion Engine > --- PROPULSION ------- Cargo Legs > --- UTILITY ---------- Humpback Active Sensor Suite Improved Terrain Scanner Surveybot 17 Chip Makeshift Light Armor Plating Makeshift Kinetic Plating > --- WEAPON ----------- Overtuned Quantum Rifle Heavy Plasma Cannon Mining Laser > --- INVENTORY -------- Ion Engine Disposable Heat Sink Disposable Heat Sink Enhanced Optical Array Seismic Detector ECM Suite Utility Shielding Medium Armor Plating Hardened Light Armor Plating Improved Hacking Suite Trap Extractor Scrapoid Pod Overtuned Pulse Rifle Overtuned Beamcaster Overtuned Beamcaster Proton Cannon Overtuned Barrage Gun Gauss Cannon Grenade Launcher Rocket Launcher Mini Grenade Launcher Subdweller Shrapnel Launcher Subdweller Shrapnel Launcher [Rating: 87] Favorites ----------- Power Ion Engine Engine Ion Engine Reactor Micro Antimatter Reactor Propulsion Cargo Legs Treads Biometal Heavy Treads Leg Cargo Legs Wheel Subdweller Monowheel Hover Unit Combat Linear Gravjet Flight Unit Diametric Drive Utility Makeshift Light Armor Plating Device Improved Terrain Scanner Storage Large Storage Unit Processor Advanced Terrain Scan Processor Protection Makeshift Light Armor Plating Weapon Battle Cannon Energy Gun Small Laser Energy Cannon Subdweller Beam Cannon Ballistic Gun Battle Rifle Ballistic Cannon Battle Cannon Launcher Subdweller Shrapnel Launcher Special Weapon Mining Laser Build | -11 -10 -10 -9 -9 -6 -5 -4 -4 -3 -2 -1 ------- Run | Yrd Mat Sub Rec Scr Fac Fac Fac DSF Res Res Acc Slots Evolved 18 | . . . . . 8 2 2 . 2 2 2 Power 1 | . . . . . 1 . . . . . . Propulsion 11 | . . . . . 1 2 2 . 2 2 2 Utility 5 | . . . . . 5 . . . . . . Weapon 1 | . . . . . 1 . . . . . . Parts Attached 111 | 2 10 37 9 9 17 1 . 5 2 8 11 Power 7 | . . 1 . 1 1 1 . . . 1 2 Engine 4 | . . 1 . 1 1 1 . . . . . Core . | . . . . . . . . . . . . Reactor 3 | . . . . . . . . . . 1 2 Propulsion 22 | . 2 7 . . 3 . . 3 1 3 3 Treads 2 | . . . . . . . . . 1 1 . Leg 4 | . 1 2 . . 1 . . . . . . Wheel 6 | . 1 5 . . . . . . . . . Hover 2 | . . . . . . . . . . 1 1 Flight 8 | . . . . . 2 . . 3 . 1 2 Utility 37 | 1 5 12 2 8 4 . . . 1 2 2 Device 15 | 1 1 5 1 2 3 . . . . . 2 Storage 13 | . 4 3 . 6 . . . . . . . Processor 4 | . . . . . 1 . . . 1 2 . Hackware . | . . . . . . . . . . . . Protection 5 | . . 4 1 . . . . . . . . Artifact . | . . . . . . . . . . . . Weapon 45 | 1 3 17 7 . 9 . . 2 . 2 4 Energy Gun 5 | 1 1 2 . . 1 . . . . . . Energy Cannon 9 | . . 3 . . 1 . . 1 . 2 2 Ballistic Gun 3 | . . 3 . . . . . . . . . Ballistic Cannon 10 | . 1 3 4 . . . . . . . 2 Launcher 14 | . . 5 2 . 6 . . 1 . . . Special Weapon 4 | . 1 1 1 . 1 . . . . . . Impact Weapon . | . . . . . . . . . . . . Slashing Weapon . | . . . . . . . . . . . . Piercing Weapon . | . . . . . . . . . . . . Special Melee Weapon . | . . . . . . . . . . . . Unidentified Prototypes 1 | . . . . . . . . . . 1 . Parts Lost 30 | . 2 3 . . 9 1 . 2 3 1 9 Power 3 | . 1 . . . 2 . . . . . . Propulsion 14 | . . 3 . . . 1 . 1 3 . 6 Utility 8 | . . . . . 4 . . . . 1 3 Weapon 5 | . 1 . . . 3 . . 1 . . . Highest Loss Streak 9 | . 2 1 . . 5 1 . 2 3 1 9 To Critical Strikes . | . . . . . . . . . . . . Average Slot Usage (%) 71 | . 99 89 88 71 44 8 2 4 13 15 19 Engine 10 | . 13 13 11 11 8 3 2 . . . . Leg 10 | . 19 8 11 11 5 . . . . . . Wheel 1 | . 8 8 . . . . . . . . . Device 5 | . 10 10 8 4 7 . . . . . 1 Storage 10 | . 17 14 11 9 2 . . . . . . Protection 20 | . . 7 24 24 8 . . . . . . Energy Gun 1 | . 16 4 . . . . . . . . . Ballistic Cannon 9 | . 3 2 13 10 . . . . . . . Peak Build Rating 87 | 8 8 33 33 40 87 11 6 16 24 46 73 Average Rating 30 | 6 7 16 32 32 59 9 1 4 17 21 40 On Entrance 16 | 6 8 7 33 33 40 6 6 1 11 6 46 Naked Turns 71 | . . . . . 21 . 16 34 . . . Heaviest Build 231 | 13 34 55 55 216 231 9 9 13 . 8 26 Greatest Support 75 | 20 20 55 55 55 75 6 3 12 12 14 75 Greatest Overweight (x) 12 | . 3 12 . 5 4 2 2 4 . 2 8 Average Overweight (x) . | . 1 2 . . . . . . . . . Largest Inventory Capacity 35 | 8 15 15 15 35 35 5 5 5 5 5 5 Average Capacity 19 | 8 11 15 15 21 20 5 5 5 5 5 5 Most Carried 35 | 8 11 15 15 35 35 5 5 5 5 5 5 Average Carried 13 | 6 8 14 14 14 16 4 5 4 4 4 4 Final Capacity 35 | 8 15 15 15 35 5 5 5 5 5 5 5 Final Carried 35 | 8 10 15 15 35 5 5 5 3 5 5 5 Class Distribution -------------------- 40% | Derelict-Mutant 29% | Mutant 29% | Hauler-Mutant Dominant Class ---------------- Mutant | -10/Materials Mutant | -10/Subcaves Derelict-Mutant | -9/Recycling Derelict-Mutant | -9/Scraptown Mutant | -6/Factory Mutant | -5/Factory Mutant | -4/Factory Mutant | -4/DSF Mutant | -3/Research Mutant | -2/Research Mutant | -1/Access Resources | -11 -10 -10 -9 -9 -6 -5 -4 -4 -3 -2 -1 ----------- Run | Yrd Mat Sub Rec Scr Fac Fac Fac DSF Res Res Acc Matter Collected 2036 | 240 172 604 510 110 . . . 278 45 66 11 Remotely . | . . . . . . . . . . . . Salvage Created 731 | 241 130 122 160 . 78 . . . . . . Parts 46 | 21 6 11 5 . 3 . . . . . . Haulers Intercepted 1 | . 1 . . . . . . . . . . Recyclers Shooed . | . . . . . . . . . . . . Parts Field Recycled . | . . . . . . . . . . . . Retrieved Matter . | . . . . . . . . . . . . Parts Self-Destructed 7 | . . 7 . . . . . . . . . Prevented . | . . . . . . . . . . . . Kills | -11 -10 -10 -9 -9 -6 -5 -4 -4 -3 -2 -1 ------- Run | Yrd Mat Sub Rec Scr Fac Fac Fac DSF Res Res Acc Combat Hostiles Destroyed 16 | . 2 10 1 . 3 . . . . . . Guns 1 | . . 1 . . . . . . . . . Cannons 3 | . 2 1 . . . . . . . . . AOE 12 | . . 8 1 . 3 . . . . . . Classes Destroyed 12 | 3 2 3 1 . 3 . . . . . . Worker 2 | 2 . . . . . . . . . . . Builder 1 | . . . . . 1 . . . . . . Tunneler 5 | 5 . . . . . . . . . . . Hauler 1 | . 1 . . . . . . . . . . Recycler 3 | 1 . . 2 . . . . . . . . Operator 1 | . . . . . 1 . . . . . . Turret 1 | . . 1 . . . . . . . . . Swarmer 1 | . . 1 . . . . . . . . . Grunt 4 | . 2 . . . 2 . . . . . . Duelist 1 | . . . . . 1 . . . . . . Sentry 1 | . . . 1 . . . . . . . . Subdweller 9 | . . 9 . . . . . . . . . Best Kill Streak 5 | 5 1 5 3 . 4 . . . . . . Combat Bots Only 5 | . 1 5 1 . 3 . . . . . . Max Kills in Single Turn 3 | 1 1 1 3 . 2 . . . . . . Gunslinging . | . . . . . . . . . . . . Exploded 2 | . . 1 1 . 2 . . . . . . Melee . | . . . . . . . . . . . . Uniques/NPCs Destroyed . | . . . . . . . . . . . . Combat | -11 -10 -10 -9 -9 -6 -5 -4 -4 -3 -2 -1 -------- Run | Yrd Mat Sub Rec Scr Fac Fac Fac DSF Res Res Acc Hostile Shots Fired 598 | . 35 58 . . 149 7 . 27 41 73 208 Missed 249 | . 7 19 . . 76 . . 10 18 31 88 Damage Taken 7405 | . 410 675 10 . 1141 141 . 687 563 1017 2761 Core 4021 | . 32 174 . . 429 82 . 536 213 940 1615 Absorbed by Shields . | . . . . . . . . . . . . Ignored by Resistances 11 | . . 8 2 . 1 . . . . . . Core Remaining (%) 61 | 100 . . . 17 49 91 . 53 83 35 . Volleys Fired 121 | 20 42 45 4 . 8 . . . . 1 1 Largest 3 | 2 2 2 2 . 3 . . . . 1 2 Hottest 161 | 80 100 120 100 . 110 . . . . 113 161 Shots Fired 199 | 40 62 76 5 . 13 . . . . 1 2 Gun 84 | 40 23 21 . . . . . . . . . Cannon 37 | . 18 16 . . . . . . . 1 2 Launcher 38 | . . 26 2 . 10 . . . . . . Special 40 | . 21 13 3 . 3 . . . . . . Kinetic 72 | . 18 43 2 . 8 . . . . . 1 Thermal 113 | 38 44 23 3 . 3 . . . . 1 1 Explosive 12 | . . 10 . . 2 . . . . . . Electromagnetic 2 | 2 . . . . . . . . . . . Robot Hit Streak 10 | 6 6 10 1 . 2 . . . . . 3 Robot Miss Streak 3 | 3 2 3 1 . 3 . . . . . 1 Penetration Max . | . . . . . . . . . . . . Secondary Targets . | . . . . . . . . . . . . Shots Hit Robots 72 | 23 29 16 1 . 2 . . . . . 1 Core Hits 53 | 9 6 16 4 . 17 . . . . 1 . Critical Kills . | . . . . . . . . . . . . Critical Parts Destroyed . | . . . . . . . . . . . . Critical Strikes 1 | . 1 . . . . . . . . . . Blast 1 | . 1 . . . . . . . . . . Melee Attacks . | . . . . . . . . . . . . Impact . | . . . . . . . . . . . . Slashing . | . . . . . . . . . . . . Piercing . | . . . . . . . . . . . . Sneak Attacks . | . . . . . . . . . . . . Combat Hostiles . | . . . . . . . . . . . . Follow-up Attacks . | . . . . . . . . . . . . Damage Inflicted 3498 | 276 399 1672 196 . 834 11 . . . 40 70 Guns 484 | 276 176 32 . . . . . . . . . Cannons 289 | . 223 24 . . . . . . . . 42 Explosions 2603 | . . 1616 196 . 791 . . . . . . Melee . | . . . . . . . . . . . . Ramming 122 | . . . . . 43 11 . . . 40 28 Kinetic 1932 | . 223 1079 196 . 434 . . . . . . Thermal 513 | 263 176 32 . . . . . . . . 42 Explosive 918 | . . 561 . . 357 . . . . . . Electromagnetic 13 | 13 . . . . . . . . . . . Impact . | . . . . . . . . . . . . Slashing . | . . . . . . . . . . . . Piercing . | . . . . . . . . . . . . Highest Corruption 20 | . . . . . 6 3 . . . 4 20 Average Corruption 6 | . . . . . 4 2 . . . 1 11 Corruption Purged . | . . . . . . . . . . . . Corruption Blocked . | . . . . . . . . . . . . Effects 13 | . . . . . 4 . . . . 2 7 Message Errors 2 | . . . . . 1 . . . . . 1 Matter Fused 3 | . . . . . 1 . . . . 1 1 Heat Flow Errors 2 | . . . . . . . . . . . 2 Energy Discharges 2 | . . . . . . . . . . . 2 Parts Rejected 2 | . . . . . 2 . . . . . . Alerts 1 | . . . . . . . . . . 1 . Misdirections 1 | . . . . . . . . . . . 1 Overload Shots . | . . . . . . . . . . . . Overflow Damage 6 | . . 6 . . . . . . . . . Projectiles . | . . . . . . . . . . . . Explosions 6 | . . 6 . . . . . . . . . Melee . | . . . . . . . . . . . . Knockbacks 15 | . 13 . . . 1 1 . . . . . Impact 2 | . . . . . 1 1 . . . . . Kinetic 7 | . 7 . . . . . . . . . . Secondary 6 | . 6 . . . . . . . . . . Self-Inflicted Damage 113 | . . 43 10 . 25 5 . . . 18 12 Shots 5 | . . 3 1 . 1 . . . . . . Rammed 28 | . . . . . 9 4 . . . 9 6 Targets Rammed 29 | . . . . . 10 4 . . . 9 6 Kicked 1 | . . . . . 1 . . . . . . Crushed . | . . . . . . . . . . . . Highest Temperature 372 | 72 372 24 138 . 84 . . . . 360 201 Average Temperature 65 | 23 87 13 59 . 29 . . . . 160 79 Received Heat Transfer 1618 | . 234 198 . . 399 63 . . 126 526 72 Effects 4 | . 4 . . . . . . . . . . Shutdowns 1 | . 1 . . . . . . . . . . Energy Bleed 1 | . 1 . . . . . . . . . . Interference 1 | . 1 . . . . . . . . . . Short Circuit 1 | . 1 . . . . . . . . . . Siege Activations . | . . . . . . . . . . . . Robots Corrupted . | . . . . . . . . . . . . Combat Hostiles . | . . . . . . . . . . . . Parts Fried . | . . . . . . . . . . . . Impact Corruptions . | . . . . . . . . . . . . Robots Melted . | . . . . . . . . . . . . Combat Hostiles . | . . . . . . . . . . . . Parts Melted . | . . . . . . . . . . . . Heat Transferred 1112 | 600 400 75 . . . . . . . . 37 Parts Sabotaged . | . . . . . . . . . . . . Parts Stolen . | . . . . . . . . . . . . Parts Stripped . | . . . . . . . . . . . . Power Chain Reactions . | . . . . . . . . . . . . Alert | -11 -10 -10 -9 -9 -6 -5 -4 -4 -3 -2 -1 ------- Run | Yrd Mat Sub Rec Scr Fac Fac Fac DSF Res Res Acc Peak Influence 357 | 40 108 . 80 . 345 183 84 58 36 97 357 Initial 168 | . 26 . 55 . . 168 84 58 21 20 57 Average 66 | 18 41 . 45 . 106 175 84 51 19 38 126 Maximum Alert Level 1 | . . . . . 1 . . . . . 1 Low Security (%) 95 | 100 100 . 100 . 90 100 100 100 100 100 76 Level 1 4 | . . . . . 9 . . . . . 23 Level 2 . | . . . . . . . . . . . . Level 3 . | . . . . . . . . . . . . Level 4 . | . . . . . . . . . . . . Level 5 . | . . . . . . . . . . . . High Security . | . . . . . . . . . . . . Max Security . | . . . . . . . . . . . . Squads Dispatched 10 | . . . . . 2 1 1 1 . 3 2 Investigation 3 | . . . . . 1 . . . . 1 1 Extermination 2 | . . . . . . . . . . 1 1 Reinforcement 5 | . . . . . 1 1 1 1 . 1 . Assault . | . . . . . . . . . . . . Garrison . | . . . . . . . . . . . . Intercept . | . . . . . . . . . . . . Searches Triggered . | . . . . . . . . . . . . Construction Impeded 1 | . . . . . 1 . . . . . . Haulers Reinforced . | . . . . . . . . . . . . Active Scanning Responses 1 | . . . . . 1 . . . . . . Cargo Convoy Interrupts . | . . . . . . . . . . . . Stealth | -11 -10 -10 -9 -9 -6 -5 -4 -4 -3 -2 -1 --------- Run | Yrd Mat Sub Rec Scr Fac Fac Fac DSF Res Res Acc Distress Signals 5 | . . . . . . . . . . . 5 Communications Jammed . | . . . . . . . . . . . . Distress Signals . | . . . . . . . . . . . . Times Spotted 107 | . 7 16 . . 21 3 . 5 7 9 39 Peak Tracking Total 16 | . 3 2 . . 10 2 1 4 8 10 16 Tactical Retreats 20 | . 2 3 . . 6 . . . 1 1 7 Traps | -11 -10 -10 -9 -9 -6 -5 -4 -4 -3 -2 -1 ------- Run | Yrd Mat Sub Rec Scr Fac Fac Fac DSF Res Res Acc Traps Triggered 7 | . . 2 . . 3 . . . . . 2 Indirectly . | . . . . . . . . . . . . Trap Hack Attempts . | . . . . . . . . . . . . Triggered . | . . . . . . . . . . . . Disarmed . | . . . . . . . . . . . . Reprogrammed . | . . . . . . . . . . . . Reused . | . . . . . . . . . . . . Traps Extracted . | . . . . . . . . . . . . Installed . | . . . . . . . . . . . . Triggered . | . . . . . . . . . . . . Most Traps Carried 2 | . . . . 2 . . . . . . . Machines | -11 -10 -10 -9 -9 -6 -5 -4 -4 -3 -2 -1 ---------- Run | Yrd Mat Sub Rec Scr Fac Fac Fac DSF Res Res Acc Machines Disabled 6 | . . 3 . . 3 . . . . . . Max in Single Turn 2 | . . 2 . . 2 . . . . . . Machines Repaired . | . . . . . . . . . . . . Machines Dismantled . | . . . . . . . . . . . . Machines Sabotaged . | . . . . . . . . . . . . Overloaded Fab Kills . | . . . . . . . . . . . . Hacking | -11 -10 -10 -9 -9 -6 -5 -4 -4 -3 -2 -1 --------- Run | Yrd Mat Sub Rec Scr Fac Fac Fac DSF Res Res Acc Machines Accessed 33 | . 6 1 10 11 . . 1 . 1 3 . Terminals 15 | . 5 . 6 . . . 1 . 1 2 . Fabricators . | . . . . . . . . . . . . Repair Stations 1 | . 1 . . . . . . . . . . Recycling Units 3 | . . . 2 . . . . . . 1 . Scanalyzers . | . . . . . . . . . . . . Garrison Access . | . . . . . . . . . . . . Total Hacks 147 | . 18 9 43 67 . . 1 . 2 7 . Successful 121 | . 11 9 32 67 . . 1 . . 1 . Failed 26 | . 7 . 11 . . . . . 2 6 . Catastrophic 5 | . . . 5 . . . . . . . . Database Lockouts . | . . . . . . . . . . . . Manual 20 | . 17 . 3 . . . . . . . . Terminals 40 | . 17 . 14 . . . 1 . 2 6 . Fabricators . | . . . . . . . . . . . . Repair Stations 1 | . 1 . . . . . . . . . . Recycling Units 6 | . . . 5 . . . . . . 1 . Scanalyzers . | . . . . . . . . . . . . Garrison Access . | . . . . . . . . . . . . Terminal Hacks 109 | . 1 9 30 67 . . 1 . . 1 . Record 91 | . . 8 24 59 . . . . . . . Part Schematic 4 | . . . 3 . . . . . . 1 . Robot Analysis 7 | . . . . 7 . . . . . . . Prototype ID Bank 1 | . . . 1 . . . . . . . . Open DSF 1 | . . . . . . . 1 . . . . Terminal Index 1 | . 1 . . . . . . . . . . Registered Components 1 | . . . 1 . . . . . . . . Zone Layout 1 | . . . 1 . . . . . . . . Derelict Proto ID Bank 2 | . . 1 . 1 . . . . . . . Fabricator Hacks . | . . . . . . . . . . . . Repair Station Hacks . | . . . . . . . . . . . . Recycling Unit Hacks 2 | . . . 2 . . . . . . . . Retrieve Components 2 | . . . 2 . . . . . . . . Scanalyzer . | . . . . . . . . . . . . Garrison Access Hacks . | . . . . . . . . . . . . Unauthorized Hacks 10 | . 10 . . . . . . . . . . Terminals 9 | . 9 . . . . . . . . . . Track 1 | . 1 . . . . . . . . . . Botnet 2 | . 2 . . . . . . . . . . Operators 1 | . 1 . . . . . . . . . . Skim 5 | . 5 . . . . . . . . . . Fabricators . | . . . . . . . . . . . . Repair Stations 1 | . 1 . . . . . . . . . . Mechanics 1 | . 1 . . . . . . . . . . Recycling Units . | . . . . . . . . . . . . Scanalyzers . | . . . . . . . . . . . . Garrison Access . | . . . . . . . . . . . . Data Cores Recovered . | . . . . . . . . . . . . Used . | . . . . . . . . . . . . Hacking Detections 16 | . 5 . 7 . . . . . 1 3 . Full Trace Events 1 | . . . . . . . . . . 1 . Feedback Events . | . . . . . . . . . . . . Feedback Blocked . | . . . . . . . . . . . . Robot Schematics Acquired . | . . . . . . . . . . . . Robots Built . | . . . . . . . . . . . . Authchips . | . . . . . . . . . . . . Time . | . . . . . . . . . . . . Total Robot Build Rating . | . . . . . . . . . . . . Part Schematics Acquired 4 | . . . 3 . . . . . . 1 . Parts Built . | . . . . . . . . . . . . Authchips . | . . . . . . . . . . . . Time . | . . . . . . . . . . . . Total Part Build Rating . | . . . . . . . . . . . . Parts Repaired . | . . . . . . . . . . . . Time . | . . . . . . . . . . . . Parts Recycled . | . . . . . . . . . . . . Recycled Matter . | . . . . . . . . . . . . Retrieved Matter . | . . . . . . . . . . . . Retrieved Components 5 | . . . 5 . . . . . . . . Parts Scanalyzed . | . . . . . . . . . . . . Part Schematics Acquired . | . . . . . . . . . . . . Parts Damaged . | . . . . . . . . . . . . Bothacking | -11 -10 -10 -9 -9 -6 -5 -4 -4 -3 -2 -1 ------------ Run | Yrd Mat Sub Rec Scr Fac Fac Fac DSF Res Res Acc Used RIF Installer . | . . . . . . . . . . . . Robots Hacked . | . . . . . . . . . . . . Non-combat . | . . . . . . . . . . . . Combat . | . . . . . . . . . . . . Robot Hacks Applied . | . . . . . . . . . . . . Relay Couplers Released . | . . . . . . . . . . . . Fabnet Peak Effective % . | . . . . . . . . . . . . Robots Rewired . | . . . . . . . . . . . . Allies Hacked . | . . . . . . . . . . . . Hacks Repelled . | . . . . . . . . . . . . Allies | -11 -10 -10 -9 -9 -6 -5 -4 -4 -3 -2 -1 -------- Run | Yrd Mat Sub Rec Scr Fac Fac Fac DSF Res Res Acc Total Allies . | . . . . . . . . . . . . Largest Group . | . . . . . . . . . . . . Highest-Rated Group . | . . . . . . . . . . . . Highest-Rated Ally . | . . . . . . . . . . . . Total Orders . | . . . . . . . . . . . . Ally Attacks . | . . . . . . . . . . . . Total Damage . | . . . . . . . . . . . . Kills . | . . . . . . . . . . . . Allies Corrupted . | . . . . . . . . . . . . Allies Melted . | . . . . . . . . . . . . Intel | -11 -10 -10 -9 -9 -6 -5 -4 -4 -3 -2 -1 ------- Run | Yrd Mat Sub Rec Scr Fac Fac Fac DSF Res Res Acc Robot Analysis Total 7 | . . . . 7 . . . . . . . Derelict Logs Recovered 6 | . . 2 . 4 . . . . . . . Drone Launches . | . . . . . . . . . . . . Drone Recoveries . | . . . . . . . . . . . . Exploration | -11 -10 -10 -9 -9 -6 -5 -4 -4 -3 -2 -1 ------------- Run | Yrd Mat Sub Rec Scr Fac Fac Fac DSF Res Res Acc Turns Passed 25309 | 199 782 2769 811 19057 728 50 19 52 76 332 434 Spaces Moved 12213 | 109 466 1143 592 8301 432 58 33 95 152 307 525 Core 1136 | . . 158 . 12 35 1 33 58 110 305 424 Treads 92 | . . . . . . . . . . . 92 Legs 10069 | 109 132 711 592 8289 236 . . . . . . Wheels 608 | . 334 274 . . . . . . . . . Hover 8 | . . . . . . . . . . 1 7 Flight 300 | . . . . . 161 57 . 37 42 1 2 Fastest Speed 24 | 120 95 110 130 130 40 40 50 24 27 50 50 Average Speed 167 | 120 112 221 130 182 124 76 56 42 46 99 67 Slowest Speed 650 | 120 330 650 130 340 410 150 150 250 50 150 450 Overloaded Moves 21 | . . . . . . . . . 21 . . Propulsion Burnouts 1 | . . . . . . . . . 1 . . Robots Hopped 3 | . . . . . 2 . . . 1 . . Cave-ins Triggered . | . . . . . . . . . . . . Exploration Rate (%) 36 | 5 46 53 85 96 21 2 1 87 6 11 23 Regions Visited 11 Branch Regions 3 Pre-discovered Areas 8 | . 2 2 . 4 . . . . . . . Known Exits Taken 3 | . . . . . 1 . 1 . 1 . . Unknown Exits Taken 7 | 1 1 1 1 1 . 1 . . . 1 . Scrap Searched 15 | . . 11 . 4 . . . . . . . Spaces Dug 24 | . 20 . 3 . . . . . . 1 . Terrain Destroyed 305 | . 20 151 38 . 95 . . . . 1 . Melee . | . . . . . . . . . . . . Projectile 25 | . 20 1 3 . . . . . . 1 . AOE 280 | . . 150 35 . 95 . . . . . . Terrain Rammed . | . . . . . . . . . . . . Walls Destroyed . | . . . . . . . . . . . . Machines Disabled . | . . . . . . . . . . . . Actions | -11 -10 -10 -9 -9 -6 -5 -4 -4 -3 -2 -1 --------- Run | Yrd Mat Sub Rec Scr Fac Fac Fac DSF Res Res Acc Total 16782 | 137 619 1273 620 12242 601 63 33 106 156 330 602 Wait 4035 | . 86 14 6 3754 126 . . . . . 49 Move 12196 | 108 465 1142 591 8300 427 57 32 94 149 306 525 Hop 3 | . . . . . 2 . . . 1 . . Pick Up 193 | 5 9 20 5 138 4 1 . 4 4 1 2 Fast Attach 19 | . 1 3 . 3 1 . . . . 6 5 Attach 44 | 1 1 9 . 4 13 1 . 5 2 2 6 Detach 15 | . . 2 . . 3 . . 1 . 3 6 Swap 48 | 1 8 25 9 2 3 . . . . . . Drop 78 | 2 7 13 5 40 4 . 1 2 . 2 2 Fire 121 | 20 42 45 4 . 8 . . . . 1 1 Melee . | . . . . . . . . . . . . Ram 28 | . . . . . 9 4 . . . 9 6 Kick 1 | . . . . . 1 . . . . . . Crush . | . . . . . . . . . . . . Escape Stasis . | . . . . . . . . . . . . Rewire 1 | . . . . 1 . . . . . . . Trap . | . . . . . . . . . . . . Miscellaneous . | . . . . . . . . . . . . Route ------- -11/Scrapyard -10/Materials (discovered 5 exits: *Mat x3 / [*Min] / *Sub) -10/Subcaves -9/Recycling (discovered 2 exits: Fac / *Scr) -9/Scraptown (discovered 2 exits: [*Fac x2]) -6/Factory (discovered 2 exits: *Fac / Low) -5/Factory (discovered 3 exits: *Fac / Upp x2) -4/Factory (discovered 3 exits: Upp x2 / DSF) -4/DSF -3/Research (discovered 2 exits: *Res / Qua) -2/Research -1/Access History --------- Turn | Location | Event 12 | -11/Scrapyard | Discovered new exit (range 3) 200 | -11/Scrapyard | Entered Materials 308 | -10/Materials | Build established: Mutant 545 | -10/Materials | Discovered new exit (range 3) 560 | -10/Materials | Identified exit to Materials 590 | -10/Materials | Discovered new exit (range 5) 612 | -10/Materials | Discovered new exit (range 6) 626 | -10/Materials | Learned location of 2 exits from Mines 682 | -10/Materials | Learned location of 1 exit from Recycling 806 | -10/Materials | Learned location of Mines (-8) 833 | -10/Materials | Learned location of 1 exit from Storage 912 | -10/Materials | Learned Storage stockpile data 982 | -10/Materials | Entered Subcaves 1260 | -10/Subcaves | Ambushed by Subdwellers from Twisted Machinery 1270 | -10/Subcaves | Core integrity fell below 50% 1347 | -10/Subcaves | Learned location of Zion (-7) 1347 | -10/Subcaves | Met a Zionite searching for "candidates" 1974 | -10/Subcaves | A swath of the cavern ceiling suddenly collapsed 3028 | -10/Subcaves | Visited 4L-MR0's lab 3075 | -10/Subcaves | Found Cargo Legs 3077 | -10/Subcaves | Attached Cargo Legs, gained temporary slots: Utility x2 3633 | -10/Subcaves | Discovered new exit (range 14) 3721 | -10/Subcaves | Core integrity fell below 20% 3751 | -10/Subcaves | Entered Recycling 3752 | -9/Recycling | Identified exit to Factory 4147 | -9/Recycling | Build established: Derelict-Mutant 4520 | -9/Recycling | Scanned before Scraplab entrance 4560 | -9/Recycling | Discovered new exit (range 2) 4562 | -9/Recycling | Entered Scraptown 4978 | -9/Scraptown | Scanned Subdweller tech in exchange for log data 4982 | -9/Scraptown | Learned location of 1 exit from Factory 4986 | -9/Scraptown | Learned Research security intel 4988 | -9/Scraptown | Learned location of Testing (-2) 5017 | -9/Scraptown | Discovered new exit (range 5) 5383 | -9/Scraptown | Visited Awakened 5865 | -9/Scraptown | Visited UFD Registry 5865 | -9/Scraptown | Registered with UFD as "Railgrid" 6012 | -9/Scraptown | Visited Scrap Suit Storage 6371 | -9/Scraptown | Visited Research Penetration Think Tank 6444 | -9/Scraptown | Discovered new exit (range 3) 6678 | -9/Scraptown | Visited CPS Storage 6762 | -9/Scraptown | Visited IN-MT5's Study 6905 | -9/Scraptown | Visited Cyclists 6929 | -9/Scraptown | Entered Cyclist Reading Room 6975 | -9/Scraptown | Visited TADAMA 7111 | -9/Scraptown | Visited Symbiants 7477 | -9/Scraptown | Visited Cartography Club 7601 | -9/Scraptown | Found Surveybot 17 Chip 8087 | -9/Scraptown | Visited Infowarlord's Domain 8431 | -9/Scraptown | Visited DA-N13 Charitable Foundation 8446 | -9/Scraptown | Found DCF Scrap (28 items) 12766 | -9/Scraptown | Visited Science Guys 14244 | -9/Scraptown | Visited Analyses Database 14278 | -9/Scraptown | Build established: Mutant 14279 | -9/Scraptown | Visited Scrapoid Pod Storage 14338 | -9/Scraptown | Visited Modified Component R&D 14422 | -9/Scraptown | Visited Chapter 10 15602 | -9/Scraptown | Learned location of Mines (-9) 15602 | -9/Scraptown | Learned location of Lower Caves (-6) 15602 | -9/Scraptown | Learned 12 Materials zone layouts 15602 | -9/Scraptown | Learned 12 Research zone layouts 15602 | -9/Scraptown | Learned 8 Access zone layouts 15602 | -9/Scraptown | Learned 4 Mines zone layouts 15602 | -9/Scraptown | Learned 4 Storage zone layouts 15602 | -9/Scraptown | Learned 12 Upper Caves zone layouts 15602 | -9/Scraptown | Learned location of 2 exits from Research 15602 | -9/Scraptown | Learned location of 1 exit from Lower Caves 15602 | -9/Scraptown | Learned location of 3 exits from Lower Caves 16007 | -9/Scraptown | Found Scrapoid Pod 16419 | -9/Scraptown | Build established: Hauler-Mutant 16963 | -9/Scraptown | Found Scrap Suit 16967 | -9/Scraptown | Found Scrap Suit 18069 | -9/Scraptown | Found Scrap Suit 18084 | -9/Scraptown | Found Scrap Suit 18105 | -9/Scraptown | Found Scrap Suit 18110 | -9/Scraptown | Found Scrap Suit 18121 | -9/Scraptown | Found Scrap Suit 18132 | -9/Scraptown | Found Scrap Suit 18147 | -9/Scraptown | Found Scrap Suit 19276 | -9/Scraptown | Visited Red Mages 21744 | -9/Scraptown | Found Relay Coupler [Proto] 21760 | -9/Scraptown | Found Relay Coupler [Proto] 22583 | -9/Scraptown | Found Active Sensor Suite 23619 | -9/Scraptown | Entered Factory 23619 | -6/Factory | Evolved 8 slots: Power x1, Propulsion x1, Utility x5, Weapon x1 23620 | -6/Factory | Identified exit to Lower Caves 23621 | -6/Factory | Identified exit to Factory 24220 | -6/Factory | Lost 5 parts (2p2u1w) 24347 | -6/Factory | Core integrity fell below 50% 24347 | -6/Factory | Entered another Factory area 24347 | -5/Factory | Evolved 2 slots: Propulsion x2 24348 | -5/Factory | Identified exit to Upper Caves 24354 | -5/Factory | Discovered new exit (range 15) 24381 | -5/Factory | Build established: Mutant 24397 | -5/Factory | Entered another Factory area 24397 | -4/Factory | Evolved 2 slots: Propulsion x2 24398 | -4/Factory | Identified exit to Upper Caves 24416 | -4/Factory | Identified exit to DSF 24416 | -4/Factory | Entered DSF 24442 | -4/DSF | Additional patrols routed to DSF 24461 | -4/DSF | Discovered new exit (range 16) 24468 | -4/DSF | Entered Research 24468 | -3/Research | Evolved 2 slots: Propulsion x2 24469 | -3/Research | Identified exit to Research 24469 | -3/Research | Identified exit to Quarantine 24544 | -3/Research | Entered another Research area 24544 | -2/Research | Evolved 2 slots: Propulsion x2 24565 | -2/Research | Lost 3 parts (3n) 24799 | -2/Research | Spotted B-90 Cyclops 24813 | -2/Research | Spotted B-90 Cyclops 24843 | -2/Research | Core integrity fell below 50% 24862 | -2/Research | Discovered new exit (range 14) 24876 | -2/Research | Entered Access 24876 | -1/Access | Evolved 2 slots: Propulsion x2 25122 | -1/Access | Spotted B-99 Colossus 25172 | -1/Access | Core integrity fell below 50% 25192 | -1/Access | System corruption reached 10% 25228 | -1/Access | Lost 9 parts (6n3u) 25252 | -1/Access | Spotted B-99 Colossus 25285 | -1/Access | Core integrity fell below 20% 25310 | -1/Access | Destroyed by P-80 Master with Gamma Rifle Last Messages --------------- 25258_ Penetrated by Slug. 25261_ System corrupted: Heat flow error (+216). 25263_ Acquired 3 matter. 25275_ Triggered Alarm Trap. 25275_ An alarm sounds. 25275_ ALERT: Alarm triggered, dispatching investigation squad. 25276_ KBQ UQGJ#SW>CPSU R|W66U8